Cogmind - Beta 11 *** ADVENTURER MODE // 2022.03.31 @ 02:38:45 Player: spruce Result: Destroyed by 8R-AWN with 8R-AWN's Boregun Performance ------------- Evolutions (1) 500 Regions Visited (5) 1000 Robots Destroyed (38) 190 Value Destroyed (761) 761 Prototype IDs (2) 40 Alien Tech Used (0) 0 Bonus (-282) -282 TOTAL SCORE: 2209 Bonus ------- Friendly Fire -282 Cogmind --------- Core Integrity 0/400 Matter 254/300 Energy 100/100 System Corruption 0% Temperature Cool (0) Movement Core (400) Ox7 Location -9/Exiles Parts ------- > --- POWER (1) -------- (None) > --- PROPULSION (2) --- Combat Airjet Combat Airjet > --- UTILITY (4) ------ Large Storage Unit Weight Redist. System > --- WEAPON (2) ------- Heavy Hammer > --- INVENTORY (15) --- Airjet Airjet Faulty Experimental Sensor Array Hacking Suite Authchip [R/Combat] EM Pulse Gun Particle Cannon Particle Cannon Flail Flail Peak State ------------ > --- POWER ------------ Light Deuterium Engine > --- PROPULSION ------- Airjet Combat Airjet > --- UTILITY ---------- Improved Heat Sink Large Storage Unit Weight Redist. System Improved Terrain Scanner > --- WEAPON ----------- Particle Cannon Particle Cannon > --- INVENTORY -------- Improved Ion Engine Airjet Airjet Airjet Airjet Combat Airjet Combat Airjet Experimental Sensor Array Improved Light Armor Plating Hacking Suite Hacking Suite Rocket Launcher Flail Flail Heavy Hammer [Rating: 29] Favorites ----------- Power Light Deuterium Engine Engine Light Deuterium Engine Propulsion Wheel Wheel Wheel Hover Unit Combat Airjet Utility Large Storage Unit Device Improved Heat Sink Storage Large Storage Unit Protection Light Armor Plating Weapon Particle Cannon Energy Gun Medium Laser Energy Cannon Particle Cannon Launcher Rocket Launcher Impact Weapon Heavy Hammer Build | -11 -10 -10 -9 -9 -9 ------- Run | Scr Mat Min Mat Min Exi Slots Evolved 2 | . . . 2 . . Power . | . . . . . . Propulsion . | . . . . . . Utility 2 | . . . 2 . . Weapon . | . . . . . . Parts Attached 34 | 6 6 1 2 11 8 Power 4 | 1 . . 1 1 1 Engine 4 | 1 . . 1 1 1 Core . | . . . . . . Reactor . | . . . . . . Propulsion 12 | 2 1 . . 6 3 Treads . | . . . . . . Leg . | . . . . . . Wheel 3 | 2 1 . . . . Hover 9 | . . . . 6 3 Flight . | . . . . . . Utility 9 | 1 2 1 1 3 1 Device 5 | . 1 1 . 3 . Storage 2 | 1 1 . . . . Processor . | . . . . . . Hackware . | . . . . . . Protection 2 | . . . 1 . 1 Artifact . | . . . . . . Weapon 9 | 2 3 . . 1 3 Energy Gun 3 | 2 1 . . . . Energy Cannon 3 | . 2 . . 1 . Ballistic Gun . | . . . . . . Ballistic Cannon . | . . . . . . Launcher 1 | . . . . . 1 Special Weapon . | . . . . . . Impact Weapon 2 | . . . . . 2 Slashing Weapon . | . . . . . . Piercing Weapon . | . . . . . . Special Melee Weapon . | . . . . . . Unidentified Prototypes . | . . . . . . Parts Lost 13 | . 1 . 1 2 9 Power 3 | . . . 1 . 2 Propulsion 5 | . 1 . . 1 3 Utility 4 | . . . . 1 3 Weapon 1 | . . . . . 1 Highest Loss Streak 9 | . 1 . 1 2 9 To Critical Strikes 2 | . . . . . 2 Average Slot Usage (%) 92 | . 88 100 77 97 87 Engine 11 | . 14 14 11 10 9 Wheel 11 | . 26 28 22 1 . Hover 11 | . . . . 19 19 Device 21 | . 5 14 11 30 25 Storage 11 | . 14 14 11 11 11 Energy Gun 5 | . 19 . . . . Energy Cannon 16 | . 6 28 22 22 7 Impact Weapon 1 | . . . . . 11 Naked Turns . | . . . . . . Heaviest Build 37 | 14 34 34 37 37 35 Greatest Support 20 | 20 20 20 20 20 20 Greatest Overweight (x) 3 | 2 1 1 1 3 1 Average Overweight (x) . | . . 1 1 1 1 Largest Inventory Capacity 15 | 8 15 15 15 15 15 Average Capacity 13 | 7 8 15 15 15 15 Most Carried 15 | 4 8 10 15 15 15 Average Carried 11 | 1 4 9 13 14 13 Final Capacity 15 | 8 15 15 15 15 15 Final Carried 15 | 4 8 10 15 15 10 Class Distribution -------------------- 50% | Scavenger-Mutant 49% | Mutant Dominant Class ---------------- Mutant | -10/Materials Mutant | -10/Mines Mutant | -9/Materials Scavenger-Mutant | -9/Mines Mutant | -9/Exiles Resources | -11 -10 -10 -9 -9 -9 ----------- Run | Scr Mat Min Mat Min Exi Matter Collected 483 | 181 143 29 20 110 . Remotely . | . . . . . . Salvage Created 1492 | . 352 76 495 549 20 Parts 91 | . 26 6 26 33 . Haulers Intercepted 2 | . 1 . 1 . . Recyclers Shooed 3 | . 2 . 1 . . Parts Field Recycled . | . . . . . . Retrieved Matter . | . . . . . . Parts Self-Destructed . | . . . . . . Prevented . | . . . . . . Kills | -11 -10 -10 -9 -9 -9 ------- Run | Scr Mat Min Mat Min Exi Combat Hostiles Destroyed 31 | . 7 2 6 14 2 Guns 7 | . 7 . . . . Cannons 22 | . . 2 6 14 . AOE 2 | . . . . . 2 Classes Destroyed 11 | . 6 . 3 2 . Builder 1 | . 1 . . . . Tunneler 2 | . 1 . . 1 . Hauler 2 | . 1 . 1 . . Recycler 5 | . . . 3 2 . Watcher 3 | . 2 . 1 . . Swarmer 12 | . 3 . 3 6 . Grunt 9 | . 4 2 1 2 . Duelist 1 | . . . 1 . . Sentry 1 | . . . 1 . . Demolisher 2 | . . . . 2 . Assembled 6 | . . . . 4 2 Best Kill Streak 12 | . 6 2 6 12 2 Combat Bots Only 6 | . 4 2 5 6 2 Max Kills in Single Turn 2 | . 1 1 2 2 2 Gunslinging . | . . . . . . Exploded 2 | . . . . . 2 Melee . | . . . . . . Uniques/NPCs Destroyed . | . . . . . . Combat | -11 -10 -10 -9 -9 -9 -------- Run | Scr Mat Min Mat Min Exi Damage Taken 1751 | . 331 18 82 390 930 Core 560 | . 152 . 5 112 291 Absorbed by Shields . | . . . . . . Core Remaining (%) 69 | 100 . 39 . . . Volleys Fired 78 | . 33 2 19 23 1 Largest 2 | . 2 2 2 2 1 Hottest 136 | . 136 136 136 136 33 Shots Fired 150 | . 61 4 38 46 1 Gun 52 | . 52 . . . . Cannon 97 | . 9 4 38 46 . Launcher 1 | . . . . . 1 Special . | . . . . . . Kinetic . | . . . . . . Thermal 149 | . 61 4 38 46 . Explosive 1 | . . . . . 1 Electromagnetic . | . . . . . . Robot Hit Streak 21 | . 7 10 13 21 5 Robot Miss Streak 3 | . 3 . 1 2 . Penetration Max . | . . . . . . Secondary Targets . | . . . . . . Shots Hit Robots 124 | . 38 3 28 35 20 Core Hits 55 | . 17 3 12 19 4 Critical Kills . | . . . . . . Critical Parts Destroyed . | . . . . . . Critical Strikes 2 | . 2 . . . . Burn 2 | . 2 . . . . Melee Attacks 20 | . . . . . 20 Impact 20 | . . . . . 20 Slashing . | . . . . . . Piercing . | . . . . . . Sneak Attacks 1 | . . . . . 1 Combat Hostiles . | . . . . . . Follow-up Attacks . | . . . . . . Damage Inflicted 2966 | . 571 63 625 771 936 Guns 424 | . 424 . . . . Cannons 1606 | . 147 63 625 771 . Explosions 158 | . . . . . 158 Melee 778 | . . . . . 778 Ramming . | . . . . . . Kinetic . | . . . . . . Thermal 2030 | . 571 63 625 771 . Explosive 158 | . . . . . 158 Electromagnetic . | . . . . . . Impact 778 | . . . . . 778 Slashing . | . . . . . . Piercing . | . . . . . . Highest Corruption . | . . . . . . Average Corruption . | . . . . . . Corruption Purged . | . . . . . . Corruption Blocked . | . . . . . . Overload Shots . | . . . . . . Overflow Damage 129 | . . . 13 15 101 Projectiles 28 | . . . 13 15 . Explosions 11 | . . . . . 11 Melee 90 | . . . . . 90 Knockbacks 1 | . . . . . 1 Impact 1 | . . . . . 1 Kinetic . | . . . . . . Secondary . | . . . . . . Self-Inflicted Damage 12 | . . . . . 12 Shots 1 | . . . . . 1 Rammed . | . . . . . . Targets Rammed . | . . . . . . Kicked . | . . . . . . Crushed . | . . . . . . Highest Temperature 652 | . 652 165 172 420 1 Average Temperature 157 | . 207 97 76 138 1 Received Heat Transfer 375 | . 138 15 9 164 49 Effects 19 | . 17 . . 2 . Shutdowns 3 | . 3 . . . . Energy Bleed 1 | . 1 . . . . Interference 3 | . 2 . . 1 . Matter Decay 1 | . 1 . . . . Short Circuit 2 | . 1 . . 1 . Damage (minor) 1 | . 1 . . . . Damage (major) 5 | . 5 . . . . Damage (core) 3 | . 3 . . . . Siege Activations . | . . . . . . Robots Corrupted . | . . . . . . Combat Hostiles . | . . . . . . Parts Fried . | . . . . . . Impact Corruptions 3 | . . . . . 3 Robots Melted . | . . . . . . Combat Hostiles . | . . . . . . Parts Melted 1 | . . . . 1 . Heat Transferred 4169 | . 1653 111 1073 1332 . Parts Sabotaged . | . . . . . . Parts Stolen . | . . . . . . Parts Stripped . | . . . . . . Power Chain Reactions . | . . . . . . Missiles Intercepted . | . . . . . . Alert | -11 -10 -10 -9 -9 -9 ------- Run | Scr Mat Min Mat Min Exi Peak Influence 334 | . 251 147 256 334 . Initial 84 | . . 82 48 84 . Average 171 | . 165 144 165 190 . Maximum Alert Level 1 | . 1 . 1 1 . Low Security (%) 67 | 100 48 100 70 70 . Level 1 32 | . 51 . 29 29 . Level 2 . | . . . . . . Level 3 . | . . . . . . Level 4 . | . . . . . . Level 5 . | . . . . . . High Security . | . . . . . . Max Security . | . . . . . . Squads Dispatched 2 | . 1 . 1 . . Investigation 1 | . 1 . . . . Extermination . | . . . . . . Reinforcement 1 | . . . 1 . . Assault . | . . . . . . Garrison . | . . . . . . Intercept . | . . . . . . Searches Triggered . | . . . . . . Construction Impeded . | . . . . . . Haulers Reinforced . | . . . . . . Active Scanning Responses . | . . . . . . Cargo Convoy Interrupts . | . . . . . . Stealth | -11 -10 -10 -9 -9 -9 --------- Run | Scr Mat Min Mat Min Exi Distress Signals 2 | . . . 2 . . Communications Jammed . | . . . . . . Distress Signals . | . . . . . . Times Spotted 55 | . 10 2 8 27 8 Peak Tracking Total 12 | . 3 2 5 12 9 Tactical Retreats 1 | . . . . 1 . Traps | -11 -10 -10 -9 -9 -9 ------- Run | Scr Mat Min Mat Min Exi Traps Triggered . | . . . . . . Indirectly . | . . . . . . Trap Hack Attempts . | . . . . . . Triggered . | . . . . . . Disarmed . | . . . . . . Reprogrammed . | . . . . . . Reused . | . . . . . . Traps Extracted . | . . . . . . Installed . | . . . . . . Triggered . | . . . . . . Machines | -11 -10 -10 -9 -9 -9 ---------- Run | Scr Mat Min Mat Min Exi Machines Disabled 1 | . . . 1 . . Max in Single Turn 1 | . . . 1 . . Machines Sabotaged . | . . . . . . Garrisons Compromised . | . . . . . . Overloaded Fab Kills . | . . . . . . Hacking | -11 -10 -10 -9 -9 -9 --------- Run | Scr Mat Min Mat Min Exi Machines Accessed 8 | . 4 . 3 1 . Terminals 7 | . 3 . 3 1 . Fabricators . | . . . . . . Repair Stations . | . . . . . . Recycling Units 1 | . 1 . . . . Scanalyzers . | . . . . . . Garrison Access . | . . . . . . Total Hacks 18 | . 12 . 3 3 . Successful 14 | . 9 . 3 2 . Failed 4 | . 3 . . 1 . Catastrophic . | . . . . . . Database Lockouts . | . . . . . . Manual 19 | . 11 . 6 2 . Terminals 17 | . 11 . 3 3 . Fabricators . | . . . . . . Repair Stations . | . . . . . . Recycling Units 1 | . 1 . . . . Scanalyzers . | . . . . . . Garrison Access . | . . . . . . Terminal Hacks 11 | . 7 . 2 2 . Robot Analysis 5 | . 3 . 2 . . Prototype ID Bank 1 | . 1 . . . . Level Access Points 1 | . 1 . . . . Branch Access Points 1 | . . . . 1 . Fabricator Index 1 | . 1 . . . . Recycling Unit Index 1 | . 1 . . . . Zone Layout 1 | . . . . 1 . Fabricator Hacks . | . . . . . . Repair Station Hacks . | . . . . . . Recycling Unit Hacks . | . . . . . . Scanalyzer . | . . . . . . Garrison Access Hacks . | . . . . . . Unauthorized Hacks 3 | . 2 . 1 . . Terminals 2 | . 1 . 1 . . Botnet 2 | . 1 . 1 . . Fabricators . | . . . . . . Repair Stations . | . . . . . . Recycling Units 1 | . 1 . . . . Tunnel 1 | . 1 . . . . Scanalyzers . | . . . . . . Garrison Access . | . . . . . . Data Cores Recovered . | . . . . . . Used . | . . . . . . Hacking Detections 5 | . 3 . 2 . . Full Trace Events 1 | . 1 . . . . Feedback Events . | . . . . . . Feedback Blocked . | . . . . . . Robot Schematics Acquired . | . . . . . . Robots Built . | . . . . . . Authchips . | . . . . . . Time . | . . . . . . Total Robot Build Rating . | . . . . . . Part Schematics Acquired . | . . . . . . Parts Built . | . . . . . . Authchips . | . . . . . . Time . | . . . . . . Total Part Build Rating . | . . . . . . Parts Repaired . | . . . . . . Time . | . . . . . . Parts Recycled . | . . . . . . Recycled Matter . | . . . . . . Retrieved Matter . | . . . . . . Retrieved Components . | . . . . . . Parts Scanalyzed . | . . . . . . Part Schematics Acquired . | . . . . . . Parts Damaged . | . . . . . . Bothacking | -11 -10 -10 -9 -9 -9 ------------ Run | Scr Mat Min Mat Min Exi Used RIF Installer . | . . . . . . Robots Hacked . | . . . . . . Non-combat . | . . . . . . Combat . | . . . . . . Robot Hacks Applied . | . . . . . . Relay Couplers Released . | . . . . . . Fabnet Peak Effective % . | . . . . . . Robots Rewired . | . . . . . . Allies Hacked . | . . . . . . Hacks Repelled . | . . . . . . Allies | -11 -10 -10 -9 -9 -9 -------- Run | Scr Mat Min Mat Min Exi Total Allies 2 | . . . . 2 . Largest Group 2 | . . . . 2 2 Highest-Rated Group 42 | . . . . 42 42 Highest-Rated Ally 31 | . . . . 31 31 Total Orders . | . . . . . . Ally Attacks . | . . . . . . Total Damage . | . . . . . . Kills . | . . . . . . Allies Corrupted . | . . . . . . Allies Melted . | . . . . . . Intel | -11 -10 -10 -9 -9 -9 ------- Run | Scr Mat Min Mat Min Exi Robot Analysis Total 5 | . 3 . 2 . . Derelict Logs Recovered 1 | . . . . 1 . Drone Launches . | . . . . . . Drone Recoveries . | . . . . . . Exploration | -11 -10 -10 -9 -9 -9 ------------- Run | Scr Mat Min Mat Min Exi Turns Passed 1595 | 56 395 69 154 782 139 Spaces Moved 1038 | 46 300 63 89 504 36 Core 17 | 17 . . . . . Treads . | . . . . . . Legs . | . . . . . . Wheels 507 | 29 300 63 89 26 . Hover 514 | . . . . 478 36 Flight . | . . . . . . Fastest Speed 50 | 50 80 95 95 95 131 Average Speed 110 | 83 86 95 95 130 131 Slowest Speed 150 | 150 95 95 95 131 131 Overloaded Moves . | . . . . . . Propulsion Burnouts . | . . . . . . Robots Hopped . | . . . . . . Cave-ins Triggered . | . . . . . . Exploration Rate (%) 33 | 3 42 26 21 96 11 Regions Visited 5 Branch Regions 3 Pre-discovered Areas 1 | . 1 . . . . Known Exits Taken 1 | . . 1 . . . Unknown Exits Taken 4 | 1 1 . 1 1 . Scrap Searched 3 | . . 1 . 2 . Spaces Dug . | . . . . . . Terrain Destroyed 7 | . . . . . 7 Melee . | . . . . . . Projectile . | . . . . . . AOE 7 | . . . . . 7 Terrain Rammed . | . . . . . . Walls Destroyed . | . . . . . . Machines Disabled . | . . . . . . Actions | -11 -10 -10 -9 -9 -9 --------- Run | Scr Mat Min Mat Min Exi Total 1303 | 60 376 67 120 588 92 Wait 89 | 5 26 . 1 30 27 Move 1033 | 45 299 62 88 503 36 Hop . | . . . . . . Pick Up 32 | 4 8 2 8 10 . Fast Attach 11 | 6 1 . 1 3 . Attach 12 | . 4 . 1 2 5 Detach . | . . . . . . Swap 11 | . 1 1 . 6 3 Drop 17 | . 4 . 2 11 . Fire 78 | . 33 2 19 23 1 Melee 20 | . . . . . 20 Ram . | . . . . . . Kick . | . . . . . . Crush . | . . . . . . Escape Stasis . | . . . . . . Rewire . | . . . . . . Trap . | . . . . . . Miscellaneous . | . . . . . . Route ------- -11/Scrapyard -10/Materials (discovered 4 exits: Mat x3 / [*Min]) -10/Mines -9/Materials -9/Mines (discovered 4 exits: [*Mat x2] / [*Exi] / [*Zio]) -9/Exiles History --------- Turn | Location | Event 15 | -11/Scrapyard | Discovered new exit (range 16) 57 | -11/Scrapyard | Entered Materials 94 | -10/Materials | Identified exit to Materials 203 | -10/Materials | Discovered new exit (range 12) 248 | -10/Materials | Core integrity fell below 50% 326 | -10/Materials | Build established: Mutant 452 | -10/Materials | Entered Mines 510 | -10/Mines | Discovered exit to Materials (range 12) 521 | -10/Mines | Entered Materials 521 | -9/Materials | Evolved 2 slots: Utility x2 639 | -9/Materials | Discovered new exit (range 14) 675 | -9/Materials | Entered Mines 676 | -9/Mines | Assembled infested the area 903 | -9/Mines | A Derelict revealed a hidden shortcut to a safe place 943 | -9/Mines | Discovered new exit (range 9) 951 | -9/Mines | Received a Rocket Launcher from a helpful Derelict 1027 | -9/Mines | Build established: Scavenger-Mutant 1143 | -9/Mines | Learned Materials stockpile data 1202 | -9/Mines | Found a damaged Exp. Sensor Array with a note attached 1205 | -9/Mines | Found Prototype Device 1214 | -9/Mines | Discovered new exit (range 8) 1428 | -9/Mines | Deemed a non-threat by the Exiles lab entrance 1428 | -9/Mines | Discovered new exit (range 5) 1457 | -9/Mines | Entered Exiles 1457 | -9/Exiles | Accompanied by 2 allies 1487 | -9/Exiles | Led the pair of lost Derelicts to a safe place 1493 | -9/Exiles | Met 8R-AWN 1534 | -9/Exiles | Attacked by the Exiles 1546 | -9/Exiles | Core integrity fell below 50% 1573 | -9/Exiles | Core integrity fell below 20% 1596 | -9/Exiles | Destroyed by 8R-AWN with 8R-AWN's Boregun Last Messages --------------- 01568_ Penetrated by HV Slug. 01568_ HV Slug penetrates Earth. 01568_ Penetrated by HV Slug. 01568_ Critical hit (Destroy). 01568_ Cmb. Airjet destroyed. 01570_ HV Slug penetrates Wall. 01570_ Penetrated by HV Slug. 01572_ Rocket Launcher destroyed. 01572_ HV Slug penetrates Wall. 01572_ Penetrated by HV Slug. 01575_ HV Slug penetrates as-45738. 01575_ as-45738 suffers critical hit (Destroy). 01577_ Penetrated by HV Slug. 01579_ Destroyed Prototype Protection. 01579_ 8R-AWN system corrupted by crushing effect. 01579_ Penetrated by HV Slug. 01583_ Imp. Ion Engine destroyed. 01583_ Penetrated by HV Slug. 01585_ 8R-AWN suffers critical hit (Burn). 01588_ Penetrated by HV Slug. Map ----- +----------------------------------------------------+ | ?????????????????????????????????????????????????? | | ?????????????????????????????????????????????????? | | ?????????????????????????????????????????????????? | | ?????????????????????????????????????????????????? | | ?????????????????????????????????????????????????? | | ?????????????????????????????????????????????????? | | ?????????????????????????????????????????????????? | | ?????????????????????????????????????????????????? | | ?????????????????????????????????????????????????? | | ?????????????????????????????????????????????????? | | ?????????????????????????????????????????????????? | | ?????????????????????????????????????????????????? | | ?????????????????????????????????????????????????? | | ?????????????????????????????????????????????????? | | ?????????????????????????????????????????????????? | | ?????????????????????????????????????????????????? | | ?????????????????????????????????????????????????? | | ?????????????????????????????????????????????????? | | ?????????????????????????????????????????????????? | | ?????????????????????????????????????????????????? | | ????????????????????????????????????????????# ??? | | ???????????????????????????????????????????# #? | | ???????????????????####???????????????????? # | | ???????????????????# ;####???????????????# # | | ??????????????????## g#??????????????## ? | | ??????????????????# %%@#?????????????## #?? | | ??????????????????## #????????????# #?? | | ??????????????????## % g###????????### #??? | | ??????????????????# ########## #??? | | ??????????????????# % #""""## #???? | | ?????????????????# * ##??? | | ????????????? % # * #??? | | ??????????? ###; ##?? | | ???????????? a ""??# """"##"" ### | | ??????????? #"""#??#;#####?##""# * # | | ???????????? #####???? ?????????###### | | ???????????? #????????? ??????????????### | | ????????????? #?????????? ????????????????### | | ????????????????????????? ??????????????????### | | ????????????????????????? ???????????????????#" | | ????????????????????????? ???????????????????#### | | ????????????????????????????????????????????????# | | ????????????????????????????????????????????????## | | ?????????????????????????????????????????????????# | | ?????????????????????????????????????????????????? | | ?????????????????????????????????????????????????? | | ?????????????????????????????????????????????????? | | ?????????????????????????????????????????????????? | | ?????????????????????????????????????????????????? | | ?????????????????????????????????????????????????? | +----------------------------------------------------+ Best States ------------- Heat Dissipation 42 Energy Generation 14 Energy Capacity 265 Matter Stores 300 Matter Capacity 300 Sight Range 16 Terrain Scan Range 16 Terrain Scan Density 10 Armor Coverage 150 Resistance: KI 20 Resistance: TH 20 Resistance: EX 20 Resistance: EM 20 Resistance: I 20 Resistance: S 20 Resistance: P 20 Evasion (%) 44 Offensive Hacking 10 Authchip Count 1 Item Schematics ----------------- None Robot Schematics ------------------ None Fabricated ------------ Nothing Alien Tech Used ----------------- None Achievements -------------- None Challenges ------------ None Game ------ Seed PointyIntegratedRay Manual? 0 Play Time 00:19:17 Cumulative 213.4 hours Start 2022.03.31 @ 02:22:05 End 2022.03.31 @ 02:38:45 Sessions 1 Manual Loads 0 Difficulty Adventurer Special Mode None Game No. 267 Rogue 266 Adventurer 1 Explorer 0 Win Type - Total 11 Types 3/3/0/1/1/3/0/0/0 Lore% 89 Gallery% 86 Achievement% 74 Wizard Run 0 Options --------- ASCII 0 Keyboard 0 Movement Mouse Keybinds 0 Fullscreen 2 Font 24/Smallcaps Map View 76x50 Tactical HUD 1 Map Filters NONE Filters NONE Steam 1 RUN: 44163475-9f9d-4985-b3c4-5925fe442dee